bitfinex/quotes_ETHUSD_20250404
["timestamp","ask_amount","ask_price","bid_price","bid_amount"]
[1743757012292,10.93999,1828.2,1827.9,6.47461]
[1743757012509,5.46961,1828.3,1828.0,0.05469824]
[1743757012716,5.46961,1828.3,1828.0,5.52510824]
[1743757013011,5.46961,1828.3,1828.0,0.05469824]
[1743757013201,6.016991,1828.2,1827.9,6.47461]
[1743757013405,10.94008,1828.2,1827.9,1.004]
[1743757013585,5.47003,1828.2,1827.9,1.004]
[1743757013785,5.47003,1828.2,1827.9,6.47475]
[1743757014611,10.94007,1828.2,1828.0,0.05469824]
[1743757014913,5.47003,1828.2,1828.0,0.05469824]
[1743757015313,10.94012,1828.2,1828.0,0.05469824]
[1743757015521,5.4697,1828.3,1828.0,0.05469824]
[1743757015686,10.93943,1828.3,1828.0,0.05469824]
[1743757015887,5.46989,1828.2,1828.0,0.05469824]
[1743757016108,5.46989,1828.2,1827.9,6.47453]
[1743757016525,5.46989,1828.2,1828.0,0.05469825]
[1743757016822,12.333213,1828.3,1828.0,0.05469825]
[1743757016985,5.46988,1828.2,1828.0,0.05469825]
[1743757017185,5.46988,1828.2,1827.9,6.47453]
[1743757017414,10.93993,1828.2,1827.9,6.47453]
[1743757017823,5.47016,1828.1,1827.9,1.004]
[1743757018319,10.94,1828.2,1827.9,1.004]
[1743757018819,5.46988,1828.2,1827.9,6.47472]
[1743757019224,10.93989,1828.2,1827.9,6.47472]
[1743757019392,5.46988,1828.2,1827.9,6.47472]
[1743757019715,5.46991,1828.2,1827.9,6.47466]
[1743757019918,10.93995,1828.2,1827.9,6.47466]
[1743757020221,5.46991,1828.2,1827.9,6.47473]
[1743757020408,10.93995,1828.2,1827.9,6.47473]
[1743757020609,10.93992,1828.2,1827.9,6.47473]
[1743757021030,5.46991,1828.2,1827.9,6.47473]
[1743757021217,10.93993,1828.2,1827.9,6.47473]
[1743757021390,10.93992,1828.2,1827.9,1.004]
[1743757021591,5.47016,1828.1,1827.9,1.004]
[1743757021792,10.94054,1828.1,1827.9,1.004]
[1743757022192,5.47016,1828.1,1827.9,1.004]
[1743757022794,10.93987,1828.2,1827.9,1.004]
[1743757022994,1.0736,1828.3,1827.9,1.004]
[1743757023298,5.47032,1828.1,1827.9,1.004]
[1743757023838,10.93989,1828.2,1827.9,6.47473]
[1743757024147,10.93989,1828.2,1827.9,1.004]
[1743757024639,5.47023,1828.1,1827.9,1.004]
[1743757026126,10.94003,1828.2,1827.9,1.004]
[1743757026331,5.46989,1828.2,1827.9,6.47471]
[1743757026533,5.46989,1828.2,1827.9,6.47464]
[1743757027530,5.46989,1828.2,1827.9,6.47463]
[1743757028865,5.46989,1828.2,1827.9,11.94529]
[1743757029018,5.46989,1828.2,1827.9,6.47463]
[1743757029219,6.51559,1828.6,1828.0,2.53972496]
[1743757029421,5.46912,1828.5,1828.1,12.01882]
[1743757029731,5.46912,1828.5,1828.1,6.54866]
[1743757029913,5.46928,1828.4,1828.1,6.54866]
[1743757030475,6.56312,1828.4,1828.1,6.54866]
[1743757031463,12.03257,1828.4,1828.1,6.54866]
[1743757031663,5.46956,1828.3,1828.0,6.52638]
[1743757031866,6.56312,1828.4,1828.1,5.47014]
[1743757032440,12.03253,1828.4,1828.1,5.47014]
[1743757032636,6.56312,1828.4,1828.1,5.47014]
[1743757033192,6.56312,1828.4,1828.1,5.52483432]
[1743757033487,6.56312,1828.4,1828.1,5.47014]
[1743757033650,12.03253,1828.4,1828.1,5.47014]
[1743757033856,6.56312,1828.4,1828.1,5.47014]
[1743757034388,6.56312,1828.4,1828.1,5.52483432]
[1743757034599,6.56312,1828.4,1828.1,5.47014]
[1743757034773,6.56312,1828.4,1828.1,5.52483432]
[1743757034945,5.46898,1828.5,1828.1,5.47006]
[1743757035142,10.93812,1828.5,1828.1,5.47006]
[1743757035343,5.46929,1828.4,1828.1,5.47006]
[1743757035756,5.46929,1828.4,1828.0,6.5264]
[1743757036083,5.46929,1828.4,1828.1,5.47011]
[1743757036084,5.46951,1828.4,1828.1,5.47011]
[1743757036272,5.46945,1828.4,1828.0,6.52636]
[1743757036465,5.46945,1828.4,1828.0,6.52632]
[1743757036466,5.46964,1828.3,1828.0,6.52632]
[1743757036643,5.46964,1828.3,1828.0,11.99664]
[1743757037678,5.46964,1828.3,1828.0,6.52632]
[1743757037843,5.46964,1828.3,1828.0,11.99668]
[1743757038475,5.46964,1828.3,1828.0,11.99669]
[1743757038774,6.016395,1828.4,1828.1,5.4701]
[1743757038977,5.46958,1828.3,1828.0,6.52632]
[1743757039143,13.1149875,1828.3,1827.9,5.47072]
[1743757039345,13.1149875,1828.3,1827.8,12.69859617]
[1743757039346,5.47014,1828.2,1827.8,12.69859617]
[1743757039571,5.47061,1828.0,1827.6,18.09635617]
[1743757039752,5.47061,1828.0,1827.7,5.47134]
[1743757039954,6.564691,1828.0,1827.7,5.47134]
[1743757041655,5.47083,1827.9,1827.6,12.62472617]
[1743757041858,5.47107,1827.8,1827.6,6.14990617]
[1743757042061,5.47107,1827.8,1827.5,5.47186]
[1743757042352,5.47107,1827.8,1827.5,10.94368]
[1743757042559,10.94182,1827.9,1827.5,10.94363]
[1743757042759,5.47083,1827.9,1827.6,5.52634942]
[1743757043152,10.94175,1827.9,1827.6,0.05470942]
[1743757043345,12.2461131,1827.9,1827.5,10.94361]
[1743757043680,12.2461131,1827.9,1827.6,0.05470943]
[1743757043872,12.2461131,1827.9,1827.5,5.4718]
[1743757044071,5.47106,1827.8,1827.5,5.4718]
[1743757044583,5.47106,1827.8,1827.6,0.05471009]
[1743757044782,5.47106,1827.8,1827.5,5.4718]
[1743757045282,5.47106,1827.8,1827.5,10.94361]
[1743757045696,5.47106,1827.8,1827.5,5.4718]
[1743757045982,5.47106,1827.8,1827.6,0.0547101]
[1743757046162,12.2462431,1827.9,1827.6,0.0547101]
[1743757046485,5.47113,1827.8,1827.5,5.4718]
[1743757048291,5.47148,1827.7,1827.4,6.5576]
[1743757048452,5.47183,1827.6,1827.3,5.47255]
[1743757048647,6.46801,1827.7,1827.3,10.99969002]
[1743757048879,11.93951,1827.7,1827.3,10.99969002]
[1743757049086,11.93951,1827.7,1827.3,5.52714002]
[1743757049300,13.133481,1827.7,1827.3,10.99956002]
[1743757049450,7.661961,1827.7,1827.3,10.99956002]
[1743757049658,7.661961,1827.7,1827.4,5.47225]
[1743757049855,13.133471,1827.7,1827.4,5.47225]
[1743757050056,7.661961,1827.7,1827.4,5.47225]
[1743757050588,7.661961,1827.7,1827.3,5.52714002]
[1743757050788,5.47172,1827.6,1827.3,5.52714002]
[1743757050950,7.661961,1827.7,1827.3,5.52714002]
[1743757051155,6.2379461,1827.6,1827.3,5.52714002]
[1743757051891,6.2379461,1827.6,1827.2,11.96947]
[1743757051892,5.47198,1827.5,1827.2,11.96947]
[1743757052059,11.7097661,1827.6,1827.2,11.96947]
[1743757052256,6.2379461,1827.6,1827.2,11.96947]
[1743757052466,6.2379461,1827.6,1827.3,5.52727002]
[1743757052683,6.2379461,1827.6,1827.3,5.47254]
[1743757052885,11.7097761,1827.6,1827.2,11.96946]
[1743757053186,11.7097561,1827.6,1827.3,5.47254]
[1743757053382,11.7097561,1827.6,1827.2,11.96946]
[1743757053687,6.2379461,1827.6,1827.2,11.96946]
[1743757054079,6.2379461,1827.6,1827.3,5.52727002]
[1743757054388,6.2379461,1827.6,1827.3,5.47253]
[1743757054992,6.2379461,1827.6,1827.3,5.52725003]
[1743757055157,11.7098061,1827.6,1827.3,5.52725003]
[1743757055357,6.2379461,1827.6,1827.3,5.47253]
[1743757055574,5.47175,1827.6,1827.3,5.47253]
[1743757055776,5.47109,1827.8,1827.4,1.0096]
[1743757055970,1.0641,1827.9,1827.4,1.0096]
[1743757056155,5.47107,1827.8,1827.5,5.52654343]
[1743757056582,5.47107,1827.8,1827.5,10.9437]
[1743757056787,5.47107,1827.8,1827.5,5.47183]
[1743757057088,12.00602,1827.9,1827.5,6.667194]
[1743757057293,5.47113,1827.8,1827.5,6.667194]
[1743757058071,5.47285,1827.2,1827.1,0.1]
[1743757058269,1.0544,1827.2,1827.1,0.1]
[1743757058859,5.4726,1827.3,1827.1,0.1]
[1743757059061,10.94536,1827.3,1827.1,0.1]
[1743757059260,10.94535,1827.3,1827.1,0.1]
[1743757059656,5.4726,1827.3,1827.1,0.1]
[1743757059961,10.94537,1827.3,1827.1,0.1]
[1743757060166,5.47285,1827.2,1827.1,0.1]
[1743757062897,7.556395,1827.2,1827.1,0.1]
[1743757063083,2.083545,1827.2,1827.1,0.1]
[1743757063285,5.47165,1827.6,1827.2,5.47264]
[1743757063497,5.47206,1827.5,1827.1,9.05629662]
[1743757063807,5.47206,1827.5,1827.2,5.47278]
[1743757063970,10.94422,1827.5,1827.1,6.57135]
[1743757064170,10.94422,1827.5,1827.1,7.228485]
[1743757064514,5.47226,1827.4,1827.1,7.228485]
[1743757065012,5.47226,1827.4,1827.1,1.755435]
[1743757065314,5.47195,1827.5,1827.1,7.228415]
[1743757065903,10.94409,1827.5,1827.1,7.228415]
[1743757066130,10.94415,1827.5,1827.1,7.228415]
[1743757066414,5.47226,1827.4,1827.1,1.755435]
[1743757066587,5.47226,1827.4,1827.1,7.228535]
[1743757067302,5.47198,1827.5,1827.1,7.228535]
[1743757067503,10.94414,1827.5,1827.1,7.228535]
[1743757067879,1.0399,1827.9,1827.3,0.9991]
[1743757068186,12.39817201,1827.9,1827.5,5.47185]
[1743757068501,5.4715,1827.7,1827.3,11.79251]
[1743757068797,5.4715,1827.7,1827.3,11.79247]
[1743757069001,10.94308,1827.7,1827.3,11.79247]
[1743757069304,5.47209,1827.5,1827.3,5.321]
[1743757069490,5.47209,1827.5,1827.1,12.702635]
[1743757069701,5.4714,1827.7,1827.3,6.47175]
[1743757069884,10.94294,1827.7,1827.3,6.47175]
[1743757070297,5.4714,1827.7,1827.3,6.47175]
[1743757070801,10.94299,1827.7,1827.3,6.47175]
[1743757071103,10.94299,1827.7,1827.3,7.666207]
[1743757071319,5.47167,1827.6,1827.3,7.666207]
[1743757073807,10.94294,1827.7,1827.3,7.666207]
[1743757076407,5.47165,1827.6,1827.3,7.666207]
[1743757077305,5.47165,1827.6,1827.3,2.193857]
[1743757077607,5.47165,1827.6,1827.3,0.9994]
[1743757077974,5.47165,1827.6,1827.3,6.47194]
[1743757078198,5.47201,1827.5,1827.3,0.9994]
[1743757078400,5.47165,1827.6,1827.3,1.0541186]
[1743757078704,5.47107,1827.8,1827.5,5.47187]
[1743757078909,10.94238,1827.8,1827.6,0.9814]
[1743757079103,5.47107,1827.8,1827.6,0.9814]
[1743757079307,5.47135,1827.7,1827.6,0.9814]
[1743757079803,5.47135,1827.7,1827.5,0.9881]
[1743757079979,10.94291,1827.7,1827.5,0.9881]
[1743757080380,5.47135,1827.7,1827.5,0.9881]
[1743757081008,5.47165,1827.6,1827.5,0.9881]
[1743757081203,5.47165,1827.6,1827.3,5.47241]
[1743757081204,1.42275201,1827.9,1827.3,1.0173]
[1743757081505,5.47206,1827.5,1827.3,1.0173]
[1743757082806,10.94419,1827.5,1827.2,5.47282]
[1743757083012,10.94419,1827.5,1827.1,12.12258]
[1743757083510,10.9443,1827.5,1827.1,12.12246]
[1743757083712,5.47229,1827.4,1827.1,6.64943]
[1743757084010,5.47229,1827.4,1827.1,12.12247]
[1743757084598,5.47229,1827.4,1827.1,6.64943]
[1743757084780,5.47229,1827.4,1827.1,12.12247]
[1743757085083,10.9443,1827.5,1827.1,12.12247]
[1743757085613,5.4723,1827.4,1827.1,6.64943]
[1743757086797,10.94404,1827.5,1827.1,12.12249]
[1743757087110,5.47198,1827.5,1827.2,5.47284]
[1743757087780,5.47172,1827.6,1827.3,5.47254]
[1743757087975,10.94353,1827.6,1827.3,5.47254]
[1743757088180,10.94354,1827.6,1827.2,5.52756086]
[1743757088420,5.47207,1827.5,1827.2,5.47284]
[1743757088634,10.94421,1827.5,1827.1,12.12254]
[1743757088845,5.47207,1827.5,1827.2,5.47283]
[1743757089134,6.666844,1827.6,1827.3,5.47252]
[1743757090204,12.138644,1827.6,1827.3,5.47252]
[1743757090399,5.47197,1827.5,1827.2,5.47272]
[1743757091098,10.94418,1827.5,1827.1,12.12254]
[1743757091299,5.4723,1827.4,1827.1,6.64945]
[1743757091533,5.4723,1827.4,1827.1,12.1225]
[1743757091700,5.47197,1827.5,1827.2,5.52753179]
[1743757091902,6.666884,1827.6,1827.2,5.52746179]
[1743757092114,6.666884,1827.6,1827.2,5.52751179]
[1743757092363,12.138704,1827.6,1827.3,5.47246]
[1743757092838,12.138704,1827.6,1827.2,5.47275]
[1743757092839,10.94405,1827.5,1827.2,5.47275]
[1743757093039,5.47195,1827.5,1827.2,5.47275]
[1743757093427,10.94405,1827.5,1827.2,5.47275]
[1743757094455,6.666884,1827.6,1827.2,5.47268]
[1743757094812,0.6666884,1827.5,1827.3,5.47244]
[1743757095229,6.47946,1827.7,1827.4,5.47222]
[1743757096453,5.4717,1827.6,1827.3,5.47244]
[1743757096653,5.4717,1827.6,1827.3,10.94488]
[1743757096844,6.47946,1827.7,1827.3,10.94488]
[1743757097022,6.47946,1827.7,1827.4,5.47223]
[1743757097228,7.92301966,1827.7,1827.4,5.47223]
[1743757099033,13.39454966,1827.7,1827.4,5.47223]
[1743757099457,5.47169,1827.6,1827.3,5.47244]
[1743757100564,5.47169,1827.6,1827.3,10.94485]
[1743757101071,5.47169,1827.6,1827.3,5.47241]
[1743757101249,6.81116397,1827.6,1827.3,5.47241]
[1743757101953,1.0152,1827.5,1827.2,10.9455]
[1743757102258,1.0152,1827.5,1827.3,5.47255]
[1743757103150,5.47169,1827.6,1827.3,10.94496]
[1743757104226,5.47169,1827.6,1827.3,10.94485]
[1743757105328,13.34225355,1827.7,1827.3,10.94485]
[1743757105655,14.67647891,1827.7,1827.3,10.94485]
[1743757105854,14.67647891,1827.7,1827.3,5.47241]
[1743757106346,9.20499891,1827.7,1827.3,5.47241]
[1743757106746,14.67660891,1827.7,1827.3,10.94486]
[1743757107258,6.49232,1827.6,1827.1,6.64939]
[1743757107557,6.121272,1827.5,1827.1,6.64939]
[1743757107759,6.121272,1827.5,1827.2,5.4728]
[1743757108127,11.593522,1827.5,1827.1,12.12241]
[1743757108327,11.593522,1827.5,1827.1,12.12243]
[1743757108651,6.121272,1827.5,1827.2,5.47276]
[1743757108866,0.6121272,1827.4,1827.1,12.12254]
[1743757110665,0.649232,1827.5,1827.1,1.1764]
[1743757110870,6.49227,1827.6,1827.3,5.47229]
[1743757114574,5.47205,1827.5,1827.2,5.47278]
[1743757114768,11.96421,1827.6,1827.2,10.9455]
[1743757115077,6.668611,1827.5,1827.1,6.64927]
[1743757115244,6.668611,1827.5,1827.2,5.47271]
[1743757117236,4.33422536,1827.7,1827.3,1.0794]
[1743757117435,9.80581536,1827.7,1827.3,6.55184]
[1743757117860,5.47174,1827.6,1827.3,6.55184]
[1743757121292,5.47174,1827.6,1827.3,12.02426]
[1743757121511,5.47168,1827.6,1827.3,6.55182]
[1743757121666,5.47141,1827.7,1827.3,6.55188]
[1743757121976,10.94353,1827.6,1827.3,5.47248]
[1743757122294,5.47209,1827.5,1827.1,6.57923]
[1743757122588,5.47209,1827.5,1827.2,5.47277]
[1743757127118,1.0641,1827.4,1827.1,0.1]
[1743757127284,5.47256,1827.3,1827.1,0.1]
[1743757127464,6.126226,1827.3,1827.1,0.1]
[1743757128168,6.53642,1827.4,1827.1,5.57305]
[1743757131907,3.9851,1827.6,1827.2,1.0186]
[1743757132113,8.47189,1827.6,1827.2,6.49129]
[1743757132280,13.94382,1827.6,1827.2,6.49129]
[1743757132910,5.47205,1827.5,1827.2,6.49136]
[1743757133289,10.94419,1827.5,1827.2,1.0186]
[1743757133610,5.47205,1827.5,1827.2,6.49141]
[1743757134191,13.94348,1827.6,1827.2,11.96416]
[1743757134375,5.47204,1827.5,1827.2,6.49135]
[1743757135714,10.94416,1827.5,1827.2,6.49135]
[1743757135909,5.47231,1827.4,1827.1,5.57314]
[1743757137539,10.94473,1827.4,1827.1,5.57314]
[1743757137720,5.47231,1827.4,1827.1,5.57314]
[1743757138582,6.46333,1827.5,1827.2,5.47267]
[1743757138791,13.0310688,1827.5,1827.2,5.47267]
[1743757139121,4.492858,1827.6,1827.2,5.47285]
[1743757139292,5.47195,1827.5,1827.2,6.47806]
[1743757139491,5.47195,1827.5,1827.2,11.95078]
[1743757139697,13.94386,1827.6,1827.2,11.95078]
[1743757140021,5.47198,1827.5,1827.2,6.47802]
[1743757140321,8.47193,1827.6,1827.3,5.47234]
[1743757140322,5.47193,1827.6,1827.3,5.47234]
[1743757140497,5.47193,1827.6,1827.3,10.94476]
[1743757140704,6.46949,1827.7,1827.3,5.47234]
[1743757140895,11.9411,1827.7,1827.3,10.94478]
[1743757141095,6.46949,1827.7,1827.4,5.47215]
[1743757141311,9.46955,1827.7,1827.4,5.47212]
[1743757141496,9.46955,1827.7,1827.3,10.94493]
[1743757141704,9.46955,1827.7,1827.4,5.47221]
[1743757142831,1.0251,1827.9,1827.5,1.0054]
[1743757143127,6.49587,1827.9,1827.6,5.4715]
[1743757143731,6.49587,1827.9,1827.5,11.94911]
[1743757143930,6.49587,1827.9,1827.6,5.47158]
[1743757144240,6.45177,1828.3,1827.9,5.47048]
[1743757144414,3.0,1828.2,1827.9,10.94111]
[1743757144736,3.0,1828.2,1828.0,5.4704]
[1743757144922,3.0,1828.2,1827.9,5.47048]
[1743757145325,11.92149,1828.3,1827.9,5.47048]
[1743757145642,3.0,1828.2,1828.0,5.47045]
[1743757145823,3.0,1828.2,1828.0,10.94076]
[1743757146135,3.0,1828.2,1828.0,5.47031]
[1743757146431,0.9822,1828.3,1828.0,12.034773]
[1743757146634,5.4693,1828.4,1828.1,5.47014]
[1743757149737,6.50426,1828.3,1828.0,5.47031]
[1743757149934,6.50426,1828.3,1828.0,10.94065]
[1743757150141,1.0346,1828.3,1828.0,5.47031]
[1743757150439,1.0346,1828.3,1828.1,5.47015]
[1743757150900,1.0346,1828.3,1828.0,5.47031]
[1743757151429,6.50419,1828.3,1828.0,5.47031]
[1743757153841,1.0346,1828.3,1828.0,1.094103]
[1743757154019,9.51152,1828.5,1828.1,6.44635]
[1743757154540,14.98076,1828.5,1828.1,11.91636]
[1743757154710,9.51152,1828.5,1828.1,11.91636]
[1743757154908,14.98064,1828.5,1828.1,11.91636]
[1743757155343,14.98064,1828.5,1828.1,6.44631]
[1743757155640,5.46927,1828.4,1828.1,6.44631]
[1743757156015,6.967339,1828.4,1828.0,5.47041]
[1743757156240,0.9887,1828.3,1828.0,5.47041]
[1743757156936,6.45837,1828.3,1828.0,5.47041]
[1743757157137,6.45837,1828.3,1827.9,5.47075]
[1743757157313,5.46991,1828.2,1827.9,5.47075]
[1743757157638,6.45837,1828.3,1827.9,10.9414]
[1743757157827,6.45837,1828.3,1828.0,5.47043]
[1743757160244,3.9887,1828.3,1828.1,5.47008]
[1743757160441,9.4583,1828.3,1828.0,5.47036]
[1743757160811,14.928,1828.3,1828.0,5.47036]
[1743757161342,9.4583,1828.3,1828.0,5.47036]
[1743757162343,14.92803,1828.3,1828.0,5.47036]
[1743757162644,9.4583,1828.3,1828.0,5.47036]
[1743757162944,14.928,1828.3,1828.0,5.47036]
[1743757163111,9.4583,1828.3,1828.0,5.47036]
[1743757163310,8.4696,1828.3,1828.0,11.97399]
[1743757163522,8.4696,1828.3,1828.0,6.50363]
[1743757165443,13.93935,1828.3,1828.0,6.50363]
[1743757165639,8.4696,1828.3,1828.0,6.50363]
[1743757165812,13.93931,1828.3,1828.0,6.50363]
[1743757166012,8.4696,1828.3,1828.0,6.50363]
[1743757166644,13.93935,1828.3,1828.0,6.50363]
[1743757167042,13.93935,1828.3,1827.9,5.47068]
[1743757167043,5.46987,1828.2,1827.9,5.47068]
[1743757167343,10.93987,1828.2,1827.9,5.47068]
[1743757167568,11.94387,1828.2,1827.8,11.98966]
[1743757167853,6.47387,1828.2,1827.8,11.98966]
[1743757168022,6.47387,1828.2,1827.9,5.47067]
[1743757169451,11.94388,1828.2,1827.9,5.47067]
[1743757169770,6.47387,1828.2,1827.9,5.47067]
[1743757170850,5.47028,1828.1,1827.7,6.45512]
[1743757171045,10.9411,1828.0,1827.7,5.47122]
[1743757171267,11.9786,1828.0,1827.6,18.07700617]
[1743757171472,6.508,1828.0,1827.6,6.45545]
[1743757171771,6.508,1828.0,1827.7,5.47134]
[1743757175978,11.97865,1828.0,1827.6,11.9271]
[1743757176478,7.1138027,1828.2,1827.7,0.05470999]
[1743757176479,6.51123,1828.2,1827.7,0.05470999]
[1743757176770,11.9813,1828.2,1827.8,5.47093]
[1743757176974,11.9813,1828.2,1827.8,10.94187]
[1743757177367,11.9813,1828.2,1827.8,10.94188]
[1743757178375,11.9813,1828.2,1827.8,5.47093]
[1743757178579,6.51123,1828.2,1827.9,5.47065]
[1743757178768,6.5112,1828.2,1827.9,5.47065]
[1743757180485,8.46961,1828.3,1828.0,5.47036]
[1743757180486,8.46958,1828.3,1828.0,5.47036]
[1743757180776,8.46958,1828.3,1827.9,5.47058]
[1743757180777,13.93932,1828.3,1827.9,5.47058]
[1743757180951,13.93932,1828.3,1827.9,10.94123]
[1743757182175,13.93932,1828.3,1827.9,5.47058]
[1743757182592,5.46991,1828.2,1827.9,5.47058]
[1743757184850,5.46991,1828.2,1827.9,10.94119]
[1743757185049,5.46991,1828.2,1827.9,5.47058]
[1743757186785,10.93992,1828.2,1827.9,5.47058]
[1743757186993,5.46991,1828.2,1827.9,5.47058]
[1743757187289,12.74399052,1828.2,1827.8,6.44846]
[1743757187783,5.47016,1828.1,1827.8,6.44846]
[1743757187987,5.47016,1828.1,1827.8,5.47096]
[1743757188355,5.47016,1828.1,1827.7,5.47128]
[1743757188665,5.47047,1828.0,1827.7,5.47128]
[1743757189053,5.47047,1828.0,1827.7,10.94255]
[1743757189387,5.47047,1828.0,1827.7,5.47127]
[1743757189587,6.54197,1828.0,1827.7,5.47127]
[1743757191083,6.54197,1828.0,1827.7,5.47121]
[1743757191282,6.54197,1828.0,1827.7,10.94242]
[1743757191481,5.47016,1828.1,1827.8,5.47103]
[1743757191980,10.94048,1828.1,1827.8,5.47103]
[1743757192181,10.94048,1828.1,1827.7,12.23192611]
[1743757192992,10.94048,1828.1,1827.7,6.76070611]
[1743757193192,10.94048,1828.1,1827.7,10.94245]
[1743757194313,5.47016,1828.1,1827.8,5.47104]
[1743757194486,10.94048,1828.1,1827.8,5.47104]
[1743757194698,5.47016,1828.1,1827.8,5.47104]
[1743757195207,10.94046,1828.1,1827.8,5.47104]
[1743757195582,5.47016,1828.1,1827.8,5.47104]
[1743757196113,10.94049,1828.1,1827.8,5.47104]
[1743757196318,10.94052,1828.1,1827.8,5.47104]
[1743757197016,10.94052,1828.1,1827.7,5.47121]
[1743757197597,10.94052,1828.1,1827.7,10.94246]
[1743757197788,10.94052,1828.1,1827.7,12.136046]
[1743757198118,5.47048,1828.0,1827.7,6.664796]
[1743757198795,5.47048,1828.0,1827.7,12.136036]
[1743757198992,5.47048,1828.0,1827.7,6.664796]
[1743757199208,11.96278,1828.0,1827.7,5.47121]
[1743757199423,6.4927,1827.9,1827.5,5.47171]
[1743757199727,6.4927,1827.9,1827.5,10.94353]
[1743757200228,6.4927,1827.9,1827.6,5.47156]
[1743757200393,0.9988,1828.1,1827.7,0.547156]
[1743757200722,6.46844,1828.3,1827.9,5.47053]
[1743757200902,11.93818,1828.3,1827.9,10.94115]
[1743757201103,11.93818,1828.3,1827.9,5.47053]
[1743757201310,5.46989,1828.2,1827.9,5.47053]
[1743757201505,10.93994,1828.2,1827.8,5.47098]
[1743757201706,0.974,1828.1,1827.7,5.47126]
[1743757202014,6.44418,1828.1,1827.8,5.47096]
[1743757202218,0.974,1828.1,1827.9,5.47055]
[1743757202689,0.974,1828.1,1827.8,10.94197]
[1743757202888,0.974,1828.1,1827.8,12.036167]
[1743757203534,0.974,1828.1,1827.9,5.47075]
[1743757205419,0.995,1828.3,1828.0,5.47045]
[1743757205619,6.46457,1828.3,1828.0,5.47031]
[1743757206230,6.46457,1828.3,1828.0,10.94068]
[1743757206517,9.46458,1828.3,1828.0,5.47031]
[1743757206723,3.995,1828.3,1828.0,5.47031]
[1743757206921,0.995,1828.3,1828.2,5.46986]
[1743757207225,14.91219,1828.5,1828.1,10.94003]
[1743757207391,9.44304,1828.5,1828.1,10.94003]
[1743757207720,9.44304,1828.5,1828.2,5.46985]
[1743757207901,15.89655221,1828.5,1828.2,5.46985]
[1743757208103,10.42741221,1828.5,1828.2,5.46985]
[1743757208497,1.95828221,1828.5,1828.2,5.46974]
[1743757208707,0.9739,1828.5,1828.2,5.46974]
[1743757208935,10.93771,1828.6,1828.2,5.46974]
[1743757209343,10.93771,1828.6,1828.2,10.93947]
[1743757209642,10.93771,1828.6,1828.2,5.46973]
[1743757209995,5.46884,1828.6,1828.2,5.46973]
[1743757210339,5.46884,1828.6,1828.3,6.54761]
[1743757211640,3.0,1828.6,1828.3,12.01705]
[1743757211946,8.46875,1828.6,1828.3,6.54754]
[1743757212439,3.0,1828.6,1828.3,12.01699]
[1743757212676,6.52837,1828.7,1828.3,12.01699]
[1743757213100,5.46837,1828.7,1828.3,12.01699]
[1743757213304,8.46837,1828.7,1828.3,12.01699]
[1743757213625,3.0,1828.7,1828.4,5.46903]
[1743757214111,3.0,1828.7,1828.4,10.93811]
[1743757214315,3.0,1828.7,1828.4,6.31006611]
[1743757214518,3.0,1828.7,1828.4,5.46903]
[1743757214906,8.46846,1828.7,1828.3,6.54763]
[1743757215299,8.46846,1828.7,1828.3,12.01701]
[1743757216014,8.46846,1828.7,1828.4,5.46921]
[1743757217711,3.0,1828.7,1828.4,10.93835]
[1743757218210,3.0,1828.7,1828.5,5.46895]
[1743757218411,3.0,1828.7,1828.4,10.9383]
[1743757218940,3.0,1828.7,1828.4,5.46911]
[1743757219522,8.46836,1828.7,1828.4,5.46911]
[1743757219722,9.03637154,1828.7,1828.4,5.46911]
[1743757219922,3.0,1828.7,1828.4,5.46911]
[1743757220122,3.0,1828.7,1828.4,10.93822]
[1743757220603,3.0,1828.7,1828.5,5.46893]
[1743757220801,8.46839,1828.7,1828.4,5.46911]
[1743757221203,3.0,1828.7,1828.4,10.93823]
[1743757221404,3.0,1828.7,1828.4,5.46911]
[1743757221699,6.45407,1828.6,1828.3,1.0781]
[1743757221903,6.45407,1828.6,1828.2,16.24656]
[1743757222203,6.45407,1828.6,1828.3,5.46954]
[1743757222498,3.0,1828.6,1828.4,6.49475]
[1743757222729,3.0,1828.7,1828.4,6.49464]
[1743757222929,3.0,1828.7,1828.4,11.96377]
[1743757223108,1.0226,1829.0,1828.5,5.46893]
[1743757223313,1.0226,1829.0,1828.7,5.46823]
[1743757223314,6.49018,1829.0,1828.7,5.46823]
[1743757223600,6.49015,1829.0,1828.7,5.46823]
[1743757223824,3.0,1828.9,1828.7,5.46823]
[1743757224938,8.4678,1828.9,1828.6,11.97196]
[1743757225337,8.4678,1828.9,1828.6,6.50333]
[1743757227933,3.0,1828.9,1828.6,11.97186]
[1743757228138,11.95776,1829.0,1828.6,11.97186]
[1743757228442,5.46779,1828.9,1828.6,11.97187]
[1743757229313,5.46779,1828.9,1828.6,6.50333]
[1743757230310,5.46807,1828.8,1828.5,5.46889]
[1743757230617,11.9791,1828.7,1828.3,10.7745]
[1743757230962,6.51045,1828.7,1828.4,5.46924]
[1743757231259,6.51043,1828.7,1828.3,16.24395]
[1743757231417,2.239754,1828.7,1828.4,5.46916]
[1743757231741,7.708144,1828.7,1828.4,5.46916]
[1743757232142,2.239754,1828.7,1828.4,10.93829]
[1743757232318,6.53261,1828.8,1828.5,5.46893]
[1743757232515,1.0645,1828.8,1828.6,5.46864]
[1743757232715,15.00022,1828.9,1828.6,5.46864]
[1743757232939,5.46808,1828.8,1828.5,11.9321]